fUST/lending_fUST_20251127
["ID","MTS","AMOUNT","RATE_DAILY","PERIOD"]
[394958848,1764208770074,-151.0,0.00037712,31]
[394958849,1764208770096,-151.0,0.00037712,31]
[394958850,1764208770117,-151.0,0.00037712,31]
[394958851,1764208770140,-151.0,0.00037712,31]
[394958852,1764208770163,-151.0,0.00037712,31]
[394958853,1764208770185,-151.0,0.00037712,31]
[394958854,1764208770208,-151.0,0.00037712,31]
[394958855,1764208770230,-151.0,0.00037712,31]
[394958856,1764208770252,-153.167365,0.00037712,31]
[394958857,1764208770275,-603.722712,0.00037712,31]
[394958858,1764208770298,-603.722712,0.00037712,31]
[394958859,1764208770320,-603.722712,0.00037712,31]
[394958860,1764208770344,-603.722712,0.00037712,31]
[394958861,1764208770366,-603.722712,0.00037712,31]
[394958862,1764208770388,-603.722712,0.00037712,31]
[394958863,1764208770411,-603.722712,0.00037712,31]
[394958864,1764208770434,-603.722712,0.00037712,31]
[394958865,1764208770456,-603.722712,0.00037712,31]
[394958866,1764208770479,-603.722712,0.00037712,31]
[394958867,1764208770501,-603.722712,0.00037712,31]
[394958868,1764208770532,-603.722712,0.00037712,31]
[394958869,1764208770554,-603.722712,0.00037712,31]
[394958870,1764208770576,-603.722712,0.00037712,31]
[394958871,1764208770597,-603.722712,0.00037712,31]
[394958872,1764208770620,-603.722712,0.00037712,31]
[394958873,1764208770642,-603.722712,0.00037712,31]
[394958874,1764208770666,-603.722712,0.00037712,31]
[394958875,1764208770691,-603.722712,0.00037712,31]
[394958876,1764208770714,-603.722718,0.00037712,31]
[394958877,1764208770738,-6248.4744833,0.00037712,120]
[394958878,1764208770762,-1251.918483,0.00037712,31]
[394958879,1764208770784,-151.0,0.00037712,31]
[394958880,1764208770807,-1251.918483,0.00037712,31]
[394958881,1764208770829,-151.0,0.00037712,31]
[394958882,1764208770854,-1251.918483,0.00037712,31]
[394958883,1764208770876,-151.0,0.00037712,31]
[394958884,1764208770898,-1251.918483,0.00037712,31]
[394958885,1764208770922,-161.785186,0.00037712,31]
[394958886,1764208770943,-1251.918483,0.00037712,31]
[394958887,1764208770965,-1251.918483,0.00037712,31]
[394958888,1764208770987,-1251.918483,0.00037712,31]
[394958889,1764208771009,-1251.918483,0.00037712,31]
[394958890,1764208771032,-1251.918483,0.00037712,31]
[394958891,1764208771054,-1251.918483,0.00037712,31]
[394958892,1764208771076,-1251.918483,0.00037712,31]
[394958893,1764208771098,-1251.918483,0.00037712,31]
[394958894,1764208771121,-1251.918483,0.00037712,31]
[394958895,1764208771144,-1251.918483,0.00037712,31]
[394958896,1764208771166,-1251.918483,0.00037712,31]
[394958897,1764208771311,-1251.918483,0.00037712,31]
[394958898,1764208771336,-1251.918483,0.00037712,31]
[394958899,1764208771363,-1251.918483,0.00037712,31]
[394958900,1764208771387,-1251.918483,0.00037712,31]
[394958901,1764208771410,-1251.918485,0.00037712,31]
[394958902,1764208771433,-1359.9685,0.00037712,31]
[394958903,1764208771456,-1359.9685,0.00037712,31]
[394958904,1764208771478,-1359.9685,0.00037712,31]
[394958905,1764208771500,-1359.9685,0.00037712,31]
[394958906,1764208771522,-1359.9685,0.00037712,31]
[394958907,1764208771545,-300.95945,0.00037712,31]
[394958908,1764208771568,-1359.9685,0.00037712,31]
[394958909,1764208771593,-300.95945,0.00037712,31]
[394958910,1764208771616,-1359.9685,0.00037712,31]
[394958911,1764208771637,-300.95945,0.00037712,31]
[394958912,1764208771658,-1359.9685,0.00037712,31]
[394958913,1764208771683,-300.95945,0.00037712,31]
[394958914,1764208771705,-1359.9685,0.00037712,31]
[394958915,1764208771729,-300.95945,0.00037712,31]
[394958916,1764208771751,-1359.9685,0.00037712,31]
[394958917,1764208771776,-300.95945,0.00037712,31]
[394958918,1764208771798,-1359.9685,0.00037712,31]
[394958919,1764208771822,-300.95945,0.00037712,31]
[394958920,1764208771846,-1359.9685,0.00037712,31]
[394958921,1764208771869,-300.95945,0.00037712,31]
[394958922,1764208771891,-1359.9685,0.00037712,31]
[394958923,1764208771912,-300.95945,0.00037712,31]
[394958924,1764208771934,-300.95945,0.00037712,31]
[394958925,1764208771956,-1359.9685,0.00037712,31]
[394958926,1764208771978,-300.95945,0.00037712,31]
[394958927,1764208771999,-1359.9685,0.00037712,31]
[394958928,1764208772022,-300.95945,0.00037712,31]
[394958929,1764208772045,-1359.9685,0.00037712,31]
[394958930,1764208772069,-300.95945,0.00037712,31]
[394958931,1764208772093,-1359.9685,0.00037712,31]
[394958932,1764208772115,-291.078602,0.00037712,31]
[394958933,1764208772136,-1359.9685,0.00037712,31]
[394958934,1764208772159,-300.95945,0.00037712,31]
[394958935,1764208772181,-291.078602,0.00037712,31]
[394958936,1764208772204,-1359.9685,0.00037712,31]
[394958937,1764208772228,-300.95945,0.00037712,31]
[394958938,1764208772252,-291.078602,0.00037712,31]
[394958939,1764208772274,-1359.968498,0.00037712,31]
[394958940,1764208772297,-291.078602,0.00037712,31]
[394958941,1764208772319,-300.95945,0.00037712,31]
[394958942,1764208772344,-291.078602,0.00037712,31]
[394958943,1764208772367,-300.95945,0.00037712,31]
[394958944,1764208772389,-291.078602,0.00037712,31]
[394958945,1764208772412,-300.95945,0.00037712,31]
[394958946,1764208772435,-291.078602,0.00037712,31]
[394958947,1764208772459,-300.95945,0.00037712,31]
[394958948,1764208772481,-291.078602,0.00037712,31]
[394958949,1764208772505,-300.959456,0.00037712,31]
[394958950,1764208772528,-291.078602,0.00037712,31]
[394958951,1764208772550,-291.078602,0.00037712,31]
[394958952,1764208772572,-291.078602,0.00037712,31]
[394958953,1764208772594,-291.078602,0.00037712,31]
[394958954,1764208772617,-291.078602,0.00037712,31]
[394958955,1764208772639,-291.078602,0.00037712,31]
[394958956,1764208772661,-291.078602,0.00037712,31]
[394958957,1764208772687,-291.078602,0.00037712,31]
[394958958,1764208772710,-291.078602,0.00037712,31]
[394958959,1764208772733,-291.078602,0.00037712,31]
[394958960,1764208772755,-291.078602,0.00037712,31]
[394958961,1764208772777,-291.078594,0.00037712,31]
[394958962,1764208772799,-449.940558,0.00037712,31]
[394958963,1764208772821,-449.940558,0.00037712,31]
[394958964,1764208772844,-449.940558,0.00037712,31]
[394958965,1764208772866,-449.940558,0.00037712,31]
[394958966,1764208772889,-449.940558,0.00037712,31]
[394958967,1764208772913,-449.940558,0.00037712,31]
[394958968,1764208772934,-449.940558,0.00037712,31]
[394958969,1764208772957,-449.940558,0.00037712,31]
[394958970,1764208772979,-449.940558,0.00037712,31]
[394958971,1764208773002,-449.940558,0.00037712,31]
[394958972,1764208773025,-449.940558,0.00037712,31]
[394958973,1764208773048,-449.940558,0.00037712,31]
[394958974,1764208773070,-449.940558,0.00037712,31]
[394958975,1764208773093,-449.940558,0.00037712,31]
[394958976,1764208773115,-449.940558,0.00037712,31]
[394958977,1764208773143,-449.940558,0.00037712,31]
[394958978,1764208773165,-449.940558,0.00037712,31]
[394958979,1764208773188,-449.940558,0.00037712,31]
[394958980,1764208773213,-449.940558,0.00037712,31]
[394958981,1764208773236,-449.940553,0.00037712,31]
[394958982,1764208773264,-418.637212,0.00037712,31]
[394958983,1764208773288,-418.637212,0.00037712,31]
[394958984,1764208773310,-418.637212,0.00037712,31]
[394958985,1764208773334,-418.637212,0.00037712,31]
[394958986,1764208773360,-418.637212,0.00037712,31]
[394958987,1764208773384,-418.637212,0.00037712,31]
[394958988,1764208773408,-418.637212,0.00037712,31]
[394958989,1764208773432,-418.637212,0.00037712,31]
[394958990,1764208773455,-418.637212,0.00037712,31]
[394958991,1764208773484,-418.637212,0.00037712,31]
[394958992,1764208773620,-1031.27,0.00037712,120]
[394958993,1764208773643,-418.637212,0.00037712,31]
[394958994,1764208773667,-418.637212,0.00037712,31]
[394958995,1764208773694,-418.637212,0.00037712,31]
[394958996,1764208773719,-418.637212,0.00037712,31]
[394958997,1764208773742,-418.637212,0.00037712,31]
[394958998,1764208773765,-418.637212,0.00037712,31]
[394958999,1764208773788,-418.637212,0.00037712,31]
[394959000,1764208773810,-418.637212,0.00037712,31]
[394959001,1764208773833,-418.637212,0.00037712,31]
[394959002,1764208773857,-418.637218,0.00037712,31]
[394959003,1764208773880,-151.0,0.00037712,31]
[394959004,1764208773905,-151.0,0.00037712,31]
[394959005,1764208773928,-191.342039,0.00037712,31]
[394959006,1764208773951,-151.0,0.00037712,31]
[394959007,1764208773974,-263.315782,0.00037712,31]
[394959008,1764208773997,-151.0,0.00037712,31]
[394959009,1764208774021,-151.0,0.00037712,31]
[394959010,1764208774044,-151.0,0.00037712,31]
[394959011,1764208774067,-151.0,0.00037712,31]
[394959012,1764208774091,-151.0,0.00037712,31]
[394959013,1764208774114,-151.0,0.00037712,31]
[394959014,1764208774138,-151.0,0.00037712,31]
[394959015,1764208774161,-153.419465,0.00037712,31]
[394959016,1764208774186,-151.0,0.00037712,31]
[394959017,1764208774209,-151.0,0.00037712,31]
[394959018,1764208774234,-151.0,0.00037712,31]
[394959019,1764208774257,-166.714482,0.00037712,31]
[394959020,1764208774280,-151.0,0.00037712,31]
[394959021,1764208774305,-151.160055,0.00037712,31]
[394959022,1764208774328,-151.0,0.00037712,31]
[394959023,1764208774355,-153.944991,0.00037712,31]
[394959024,1764208774379,-151.0,0.00037712,31]
[394959025,1764208774403,-151.0,0.00037712,31]
[394959026,1764208774426,-151.0,0.00037712,31]
[394959027,1764208774449,-151.0,0.00037712,31]
[394959028,1764208774471,-151.0,0.00037712,31]
[394959029,1764208774494,-151.0,0.00037712,31]
[394959030,1764208774517,-151.0,0.00037712,31]
[394959031,1764208774540,-151.0,0.00037712,31]
[394959032,1764208774564,-151.0,0.00037712,31]
[394959033,1764208774587,-151.0,0.00037712,31]
[394959034,1764208774611,-151.0,0.00037712,31]
[394959035,1764208774633,-151.0,0.00037712,31]
[394959036,1764208774656,-151.0,0.00037712,31]
[394959037,1764208774679,-151.0,0.00037712,31]
[394959038,1764208774704,-221.275983,0.00037712,31]
[394959039,1764208774728,-1661.50617158,0.00037712,120]
[394959040,1764208774750,-151.0,0.00037712,31]
[394959041,1764208774772,-151.0,0.00037712,31]
[394959042,1764208774796,-151.0,0.00037712,31]
[394959043,1764208774818,-151.0,0.00037712,31]
[394959044,1764208774840,-151.0,0.00037712,31]
[394959045,1764208774865,-151.0,0.00037712,31]
[394959046,1764208774887,-151.0,0.00037712,31]
[394959047,1764208774910,-151.0,0.00037712,31]
[394959048,1764208774933,-151.0,0.00037712,31]
[394959049,1764208774957,-157.739256,0.00037712,31]
[394959050,1764208774979,-151.0,0.00037712,31]
[394959051,1764208775001,-151.0,0.00037712,31]
[394959052,1764208775023,-151.0,0.00037712,31]
[394959053,1764208775046,-151.0,0.00037712,31]
[394959054,1764208775068,-151.0,0.00037712,31]
[394959055,1764208775091,-151.0,0.00037712,31]
[394959056,1764208775113,-151.0,0.00037712,31]
[394959057,1764208775135,-151.0,0.00037712,31]
[394959058,1764208775158,-151.0,0.00037712,31]
[394959059,1764208775182,-151.0,0.00037712,31]
[394959060,1764208775206,-151.0,0.00037712,31]
[394959061,1764208775229,-151.0,0.00037712,31]
[394959062,1764208775252,-151.0,0.00037712,31]
[394959063,1764208775276,-151.0,0.00037712,31]
[394959064,1764208775298,-151.0,0.00037712,31]
[394959065,1764208775323,-151.0,0.00037712,31]
[394959066,1764208775346,-151.0,0.00037712,31]
[394959067,1764208775369,-151.0,0.00037712,31]
[394959068,1764208775393,-279.236901,0.00037712,31]
[394959069,1764208776363,10000.0,0.0002,30]
[394959070,1764208783717,150.0,0.00011571,30]
[394959071,1764208784117,150.0,0.00012623,30]
[394959072,1764208784528,150.0,0.00013675,30]
[394959073,1764208784765,229.0223478,0.000215,120]
[394959074,1764208784915,193.98,0.00014726,30]
[394959075,1764208785317,242.48,0.00015778,30]
[394959076,1764208785842,290.97,0.0001683,30]
[394959077,1764208786124,339.47,0.00017882,30]
[394959078,1764208786561,387.96,0.00018934,30]
[394959079,1764208786953,436.46,0.00019986,30]
[394959080,1764208799135,-160.0,0.0001686,10]
[394959081,1764208799163,-160.0,0.00016948,11]
[394959082,1764208799190,-160.0,0.00017036,12]
[394959083,1764208799217,-160.0,0.00017124,13]
[394959084,1764208799250,-1984.21874419,0.0002,20]
[394959085,1764208799283,-250.0,0.0002,10]
[394959086,1764208799312,-250.0,0.000201,10]
[394959087,1764208799340,-250.0,0.000202,10]
[394959088,1764208799369,-1000.0,0.00020209,10]
[394959089,1764208799396,-1000.0,0.00020209,10]
[394959090,1764208799425,-1000.0,0.00020209,10]
[394959091,1764208799452,-250.0,0.000203,10]
[394959092,1764208799693,-316.191766,0.00020376,15]
[394959093,1764208799725,-250.0,0.000204,10]
[394959094,1764208799748,-250.0,0.000205,10]
[394959095,1764208799773,-250.0,0.000206,10]
[394959096,1764208799798,-250.0,0.000207,10]
[394959097,1764208799822,-457.114359,0.000208,10]
[394959098,1764208799848,-289.05082267,0.00021038,30]
[394959099,1764208799873,-2927.72,0.00022,14]
[394959100,1764208799898,-1000.0,0.0002223,10]
[394959101,1764208799923,-1000.0,0.0002223,10]
[394959102,1764208799948,-596.0,0.0002223,10]
[394959103,1764208799974,-2927.72,0.000231,14]
[394959104,1764208799998,-816.18,0.00024,14]
[394959105,1764208800025,-2927.72,0.000245,14]
[394959106,1764208800052,-198.98496144,0.00025068,14]
[394959107,1764208800083,-2927.72,0.000254,14]
[394959108,1764208800111,-2927.72,0.000266,14]
[394959109,1764208800145,-164.0,0.00026712,14]
[394959110,1764208800185,-504.98069609,0.00027397,14]
[394959111,1764208800245,-467.0,0.000274,120]
[394959112,1764208800288,-2927.72,0.000277,14]
[394959113,1764208800325,-400.0,0.00028,120]
[394959114,1764208800354,-210.0,0.00028356,14]
[394959115,1764208800382,-265.12997235,0.00028466,30]
[394959116,1764208800410,-265.12997235,0.00028603,30]
[394959117,1764208800433,-265.12997235,0.0002874,30]
[394959118,1764208800461,-289.907285,0.00028767,60]
[394959119,1764208800484,-200.0,0.000288,120]
[394959120,1764208800508,-348.66061,0.000288,120]
[394959121,1764208800532,-165.807104,0.000288,60]
[394959122,1764208800555,-265.12997235,0.00028877,30]
[394959123,1764208800579,-2927.72,0.000289,14]
[394959124,1764208800604,-38000.0,0.00028997,10]
[394959125,1764208800627,-13777.22977823,0.00029,20]
[394959126,1764208800651,-353.4974844,0.00029,10]
[394959127,1764208800672,-38000.0,0.00029006,10]
[394959128,1764208800698,-265.12997235,0.00029014,30]
[394959129,1764208800721,-38000.0,0.00029015,10]
[394959130,1764208800745,-38000.0,0.00029015,10]
[394959131,1764208800785,-38000.0,0.00029023,10]
[394959132,1764208800810,-38000.0,0.00029023,10]
[394959133,1764208800835,-38000.0,0.00029032,10]
[394959134,1764208800859,-38000.0,0.00029032,10]
[394959135,1764208800885,-38000.0,0.00029041,10]
[394959136,1764208800909,-38000.0,0.00029041,10]
[394959137,1764208800934,-38000.0,0.00029041,10]
[394959138,1764208800958,-30858.67196872,0.00029041,10]
[394959139,1764208800985,-265.12997235,0.00029151,30]
[394959140,1764208801009,-265.12997235,0.00029288,30]
[394959141,1764208801035,-265.12997235,0.00029425,30]
[394959142,1764208801059,-265.12997235,0.00029562,30]
[394959143,1764208801084,-265.12997235,0.00029699,30]
[394959144,1764208801109,-165.807104,0.00029799,60]
[394959145,1764208801133,-265.12997235,0.00029836,30]
[394959146,1764208801159,-265.12997235,0.00029973,30]
[394959147,1764208801184,-1256.3,0.00029989,28]
[394959148,1764208801209,-353.4974844,0.0003,10]
[394959149,1764208801235,-400.0,0.0003,120]
[394959150,1764208801264,-200.0,0.000304,120]
[394959151,1764208801289,-348.66061,0.000304,120]
[394959152,1764208801315,-161.0,0.00030548,14]
[394959153,1764208801341,-165.807104,0.00030797,60]
[394959154,1764208801365,-353.4974844,0.000308,10]
[394959155,1764208801390,-166.23831794,0.00030925,27]
[394959156,1764208801416,-234.97219114,0.00031,120]
[394959157,1764208801443,-192.8840785,0.00031,120]
[394959158,1764208801466,-168.43571231,0.00031,120]
[394959159,1764208801490,-202.16462272,0.00031,120]
[394959160,1764208801514,-240.99130702,0.00031,120]
[394959161,1764208801538,-181.97410049,0.00031,120]
[394959162,1764208801562,-237.78331845,0.00031,120]
[394959163,1764208801586,-224.63999918,0.00031,120]
[394959164,1764208801609,-177.36712793,0.00031,120]
[394959165,1764208801635,-2271.13747649,0.00031295,28]
[394959166,1764208801660,-300.0,0.000314,120]
[394959167,1764208801686,-1212.3781723,0.00031607,28]
[394959168,1764208801712,-165.807104,0.00031796,60]
[394959169,1764208801736,-234.97219114,0.000319,120]
[394959170,1764208801759,-192.8840785,0.000319,120]
[394959171,1764208801786,-168.43571231,0.000319,120]
[394959172,1764208801808,-202.16462272,0.000319,120]
[394959173,1764208801831,-181.97410049,0.000319,120]
[394959174,1764208801854,-237.78331845,0.000319,120]
[394959175,1764208801877,-177.36712793,0.000319,120]
[394959176,1764208801900,-200.0,0.00032,120]
[394959177,1764208801925,-348.66061,0.00032,120]
[394959178,1764208801953,-400.0,0.00032,120]
[394959179,1764208801979,-174.0,0.0003274,55]
[394959180,1764208802002,-165.807104,0.00032794,60]
[394959181,1764208802188,-1083.18,0.00032876,120]
[394959182,1764208802213,-23428.99,0.00032877,10]
[394959183,1764208802240,-42604.33647711,0.00033,10]
[394959184,1764208802263,-1224.18,0.0003315,30]
[394959185,1764208802288,-1484.49920589,0.000332,117]
[394959186,1764208802312,-1484.49920589,0.000332,117]
[394959187,1764208802335,-1484.49920589,0.000332,117]
[394959188,1764208802359,-1484.49920589,0.000332,117]
[394959189,1764208802384,-7519.7,0.000335,14]
[394959190,1764208802407,-200.0,0.000336,120]
[394959191,1764208802434,-348.66061,0.000336,120]
[394959192,1764208802460,-1026.99931256,0.00033813,60]
[394959193,1764208802488,-501.0,0.00033916,120]
[394959194,1764208802512,-245.0,0.00034,14]
[394959195,1764208802536,-400.0,0.00034,120]
[394959196,1764208802559,-1224.18,0.00034054,30]
[394959197,1764208802581,-151.0,0.000341,31]
[394959198,1764208802605,-283.594946,0.000341,31]
[394959199,1764208802630,-151.0,0.000341,31]
[394959200,1764208802654,-761.632167,0.000341,31]
[394959201,1764208802678,-761.632167,0.000341,31]
[394959202,1764208802705,-761.632167,0.000341,31]
[394959203,1764208802729,-761.632167,0.000341,31]
[394959204,1764208802752,-303.273968,0.000341,31]
[394959205,1764208802775,-303.273968,0.000341,31]
[394959206,1764208802799,-3065.421225,0.000341,31]
[394959207,1764208802822,-151.0,0.000341,31]
[394959208,1764208802845,-303.273968,0.000341,31]
[394959209,1764208802870,-3065.421225,0.000341,31]
[394959210,1764208802908,-151.0,0.000341,31]
[394959211,1764208802935,-303.273973,0.000341,31]
[394959212,1764208802960,-3065.421225,0.000341,31]
[394959213,1764208802985,-3065.42121917,0.000341,31]
[394959214,1764208803011,-95000.0,0.00034247,30]
[394959215,1764208803046,-1083.18,0.0003452,120]
[394959216,1764208803071,-1372.01712715,0.00034728,12]
[394959217,1764208803096,-2000.0,0.00034799,15]
[394959218,1764208803122,-1359.6901097,0.00034849,120]
[394959219,1764208803148,-7519.7,0.000349,14]
[394959220,1764208803172,-151.0,0.000349,31]
[394959221,1764208803205,-151.0,0.000349,31]
[394959222,1764208803231,-151.0,0.000349,31]
[394959223,1764208803258,-150.07,0.00034941,60]
[394959224,1764208803283,-154.39,0.00034941,60]
[394959225,1764208803308,-161.40379007,0.00034941,60]
[394959226,1764208803335,-677.44,0.00034941,60]
[394959227,1764208803361,-1224.18,0.00034958,30]
[394959228,1764208803389,-2059.93740192,0.00035,15]
[394959229,1764208803415,-150.0,0.00035,10]
[394959230,1764208803438,-150.0,0.00035,15]
[394959231,1764208803463,-150.0,0.00035,20]
[394959232,1764208803487,-151.0,0.00035,120]
[394959233,1764208803510,-205.732785,0.00035,30]
[394959234,1764208803534,-205.732785,0.00035,30]
[394959235,1764208803557,-181.0,0.00035,120]
[394959236,1764208803586,-150.07,0.00035041,60]
[394959237,1764208803610,-154.39,0.00035041,60]
[394959238,1764208803637,-677.44,0.00035041,60]
[394959239,1764208803663,-150.07,0.00035141,60]
[394959240,1764208803690,-154.39,0.00035141,60]
[394959241,1764208803716,-677.44,0.00035141,60]
[394959242,1764208803742,-200.0,0.000352,120]
[394959243,1764208803766,-348.66061,0.000352,120]
[394959244,1764208803792,-150.07,0.00035241,60]
[394959245,1764208803816,-154.39,0.00035241,60]
[394959246,1764208803843,-677.44,0.00035241,60]
[394959247,1764208803870,-150.07,0.00035341,60]
[394959248,1764208803896,-154.39,0.00035341,60]
[394959249,1764208803923,-677.44,0.00035341,60]
[394959250,1764208803950,-150.07,0.00035441,60]
[394959251,1764208803974,-154.39,0.00035441,60]
[394959252,1764208804000,-677.44,0.00035441,60]
[394959253,1764208804026,-150.07,0.00035541,60]
[394959254,1764208804049,-154.39,0.00035541,60]
[394959255,1764208804078,-677.44,0.00035541,60]
[394959256,1764208804106,-150.07,0.00035641,60]
[394959257,1764208804132,-154.39,0.00035641,60]
[394959258,1764208804159,-677.44,0.00035641,60]
[394959259,1764208804185,-150.07,0.00035741,60]
[394959260,1764208804210,-154.39,0.00035741,60]
[394959261,1764208804238,-677.44,0.00035741,60]
[394959262,1764208804264,-151.0,0.000358,120]
[394959263,1764208804292,-150.07,0.00035841,60]
[394959264,1764208804319,-154.39,0.00035841,60]
[394959265,1764208804347,-677.44,0.00035841,60]
[394959266,1764208804373,-1224.18,0.00035863,30]
[394959267,1764208804401,-3846.91190629,0.000359,15]
[394959268,1764208804428,-528.0,0.00035916,120]
[394959269,1764208804456,-150.07,0.00035941,60]
[394959270,1764208804488,-154.39,0.00035941,60]
[394959271,1764208804519,-677.44,0.00035941,60]
[394959272,1764208804548,-400.0,0.00036,120]
[394959273,1764208804575,-170.0,0.00036027,84]
[394959274,1764208804608,-150.07,0.00036041,60]
[394959275,1764208804796,-154.39,0.00036041,60]
[394959276,1764208804824,-677.44,0.00036041,60]
[394959277,1764208804848,-7519.7,0.000361,14]
[394959278,1764208804879,-150.07,0.00036141,60]
[394959279,1764208804906,-154.39,0.00036141,60]
[394959280,1764208804933,-677.44,0.00036141,60]
[394959281,1764208804960,-1083.18,0.00036164,120]
[394959282,1764208804988,-150.07,0.00036241,60]
[394959283,1764208805015,-154.42563446,0.00036241,60]
[394959284,1764208805042,-677.44,0.00036241,60]
[394959285,1764208805070,-150.07,0.00036341,60]
[394959286,1764208805098,-677.44,0.00036341,60]
[394959287,1764208805128,-1420.889412,0.000364,24]
[394959288,1764208805160,-150.07,0.00036441,60]
[394959289,1764208805189,-677.44,0.00036441,60]
[394959290,1764208805216,-3444.81062737,0.000365,10]
[394959291,1764208805244,-150.07,0.00036541,60]
[394959292,1764208805271,-677.44,0.00036541,60]
[394959293,1764208805300,-150.07,0.00036641,60]
[394959294,1764208805328,-677.44,0.00036641,60]
[394959295,1764208805354,-151.0,0.000367,120]
[394959296,1764208805381,-288.27859675,0.00036712,16]
[394959297,1764208805410,-150.07,0.00036741,60]
[394959298,1764208805437,-677.44,0.00036741,60]
[394959299,1764208805463,-1224.18,0.00036767,30]
[394959300,1764208805491,-200.0,0.000368,120]
[394959301,1764208805515,-348.66061,0.000368,120]
[394959302,1764208805543,-150.07,0.00036841,60]
[394959303,1764208805570,-677.44,0.00036841,60]
[394959304,1764208805593,-1000.0,0.000369,24]
[394959305,1764208805620,-150.07,0.00036941,60]
[394959306,1764208805647,-677.44,0.00036941,60]
[394959307,1764208805672,-179.85611511,0.00036949,17]
[394959308,1764208805701,-534.42988937,0.00037,14]
[394959309,1764208805728,-2927.72,0.00037,30]
[394959310,1764208805757,-150.07,0.00037041,60]
[394959311,1764208805784,-677.44,0.00037041,60]
[394959312,1764208805810,-150.07,0.00037141,60]
[394959313,1764208805836,-677.44,0.00037141,60]
[394959314,1764208805863,-150.07,0.00037241,60]
[394959315,1764208805890,-677.44,0.00037241,60]
[394959316,1764208805914,-7519.7,0.000373,14]
[394959317,1764208805941,-150.07,0.00037341,60]
[394959318,1764208805968,-677.44,0.00037341,60]
[394959319,1764208805993,-1000.0,0.000374,24]
[394959320,1764208806024,-150.07,0.00037441,60]
[394959321,1764208806053,-677.44,0.00037441,60]
[394959322,1764208806079,-151.0,0.000375,120]
[394959323,1764208806106,-150.07,0.00037541,60]
[394959324,1764208806133,-677.44,0.00037541,60]
[394959325,1764208806158,-1484.49920589,0.00037612,120]
[394959326,1764208806185,-150.07,0.00037641,60]
[394959327,1764208806212,-677.44,0.00037641,60]
[394959328,1764208806237,-1224.18,0.00037671,30]
[394959329,1764208806270,-948.09588706,0.00037715,20]
[394959330,1764208806294,-1472.59017386,0.00037715,20]
[394959331,1764208806321,-150.07,0.00037741,60]
[394959332,1764208806349,-677.44,0.00037741,60]
[394959333,1764208806377,-1083.18,0.00037808,120]
[394959334,1764208806420,-150.07,0.00037841,60]
[394959335,1764208806448,-677.44,0.00037841,60]
[394959336,1764208806473,-555.0,0.00037916,120]
[394959337,1764208806499,-150.07,0.00037941,60]
[394959338,1764208806522,-400.0,0.00038,120]
[394959339,1764208806548,-150.07,0.00038041,60]
[394959340,1764208806574,-150.07,0.00038141,60]
[394959341,1764208806600,-150.07,0.00038241,60]
[394959342,1764208806626,-150.07,0.00038341,60]
[394959343,1764208806651,-1416.089941,0.00038356,120]
[394959344,1764208806676,-1416.089941,0.00038356,120]
[394959345,1764208806704,-1416.089941,0.00038356,120]
[394959346,1764208806731,-1416.089941,0.00038356,120]
[394959347,1764208806757,-1416.089941,0.00038356,120]